[Event "FIDE Women World Blitz 2021"]
[Site "Warsaw"]
[Date "2021.12.29"]
[Round "5.19"]
[White "Lagno, Kateryna"]
[Black "Balajayeva, Khanim"]
[Result "1/2-1/2"]
[ECO "C56"]
[WhiteElo "2550"]
[BlackElo "2369"]
[Annotator "ChessBase"]
[PlyCount "298"]
[EventDate "2021.12.29"]
[EventType "swiss"]
[EventCountry "POL"]
[Tiebreak "Cut1 Buchholz"]
[SourceTitle "playchess.com"]
[Source "ChessBase"]
[SourceQuality "1"]
[TimeControl "180+2"]

1. e4 {[%emt 0:00:01]} e5 {[%emt 0:00:00]} 2. Nf3 {[%emt 0:00:01]} Nc6 {
[%emt 0:00:01]} 3. Bc4 {[%emt 0:00:01]} Nf6 {[%emt 0:00:02]} 4. d4 {[%emt 0:00:
00]} exd4 {[%emt 0:00:02]} 5. e5 {[%emt 0:00:01]} d5 {[%emt 0:00:02]} 6. Bb5 {
[%emt 0:00:01]} Nd7 {[%emt 0:00:03]} 7. O-O {[%emt 0:00:16]} Bc5 {[%emt 0:00:
21]} 8. Bxc6 {[%emt 0:00:04]} bxc6 {[%emt 0:00:01]} 9. Nxd4 {[%emt 0:00:01]}
Nb8 {[%emt 0:00:40]} 10. Be3 {[%emt 0:00:12]} Qe7 {[%emt 0:00:10]} 11. Nxc6 {
[%emt 0:00:10]} Nxc6 {[%emt 0:00:03]} 12. Qxd5 {[%emt 0:00:02]} Qe6 {[%emt 0:
00:21]} 13. Qxc5 {[%emt 0:00:06]} Ne7 {[%emt 0:00:44]} 14. Qxc7 {[%emt 0:00:08]
} O-O {[%emt 0:00:02]} 15. Qd6 {[%emt 0:00:09]} Nf5 {[%emt 0:00:15]} 16. Qxe6 {
[%emt 0:00:05]} Bxe6 {[%emt 0:00:00]} 17. Bc5 {[%emt 0:00:14]} Rfc8 {[%emt 0:
00:02]} 18. b4 {[%emt 0:00:01]} a5 {[%emt 0:00:00]} 19. c3 {[%emt 0:00:04]}
axb4 {[%emt 0:00:01]} 20. cxb4 {[%emt 0:00:04]} Bxa2 {[%emt 0:00:04]} 21. Nc3 {
[%emt 0:00:02]} Bc4 {[%emt 0:00:00]} 22. Rfd1 {[%emt 0:00:06]} Rab8 {[%emt 0:
00:15]} 23. Ra7 {[%emt 0:00:03]} h6 {[%emt 0:00:04]} 24. f3 {[%emt 0:00:05]}
Re8 {[%emt 0:00:07]} 25. f4 {[%emt 0:00:11]} g5 {[%emt 0:00:01]} 26. g3 {
[%emt 0:00:04]} gxf4 {[%emt 0:00:03]} 27. gxf4 {[%emt 0:00:01]} Re6 {[%emt 0:
00:14]} 28. Kf2 {[%emt 0:00:06]} Rg6 {[%emt 0:00:01]} 29. Ne4 {[%emt 0:00:04]}
Kg7 {[%emt 0:00:05]} 30. Nf6 {[%emt 0:00:08]} Nh4 {[%emt 0:00:05]} 31. Rg1 {
[%emt 0:00:06]} Rxg1 {[%emt 0:00:01]} 32. Kxg1 {[%emt 0:00:01]} Kg6 {[%emt 0:
00:01]} 33. Kf2 {[%emt 0:00:08]} Kf5 {[%emt 0:00:01]} 34. Kg3 {[%emt 0:00:07]}
Ng6 35. Ra3 {[%emt 0:00:19]} Rd8 {[%emt 0:00:09]} 36. Rc3 {[%emt 0:00:04]} Ba6
{[%emt 0:00:03]} 37. Be3 {[%emt 0:00:13]} Rd1 {[%emt 0:00:02]} 38. Rc7 {
[%emt 0:00:07]} Rd3 {[%emt 0:00:03]} 39. Kf2 {[%emt 0:00:00]} Nxf4 {[%emt 0:00:
02]} 40. Bxf4 {[%emt 0:00:04]} Kxf4 {[%emt 0:00:01]} 41. Rxf7 {[%emt 0:00:06]}
Rd2+ {[%emt 0:00:00]} 42. Ke1 {[%emt 0:00:04]} Re2+ {[%emt 0:00:09]} 43. Kd1 {
[%emt 0:00:01]} Rxe5 {[%emt 0:00:01]} 44. Nd7+ {[%emt 0:00:15]} Rf5 {[%emt 0:
00:00]} 45. Rxf5+ {[%emt 0:00:02]} Kxf5 {[%emt 0:00:01]} 46. Nc5 {[%emt 0:00:
02]} Bb5 {[%emt 0:00:01]} 47. Ke1 {[%emt 0:00:07]} Ke5 {[%emt 0:00:02]} 48. Kf2
{[%emt 0:00:03]} Kd4 {[%emt 0:00:02]} 49. Ne6+ {[%emt 0:00:14]} Kc4 {[%emt 0:
00:07]} 50. Kg3 {[%emt 0:00:02]} Kxb4 {[%emt 0:00:00]} 51. Kh4 {[%emt 0:00:01]}
Be2 {[%emt 0:00:02]} 52. Nf4 {[%emt 0:00:01]} Bd1 {[%emt 0:00:01]} 53. Nd5+ {
[%emt 0:00:01]} Kc5 {[%emt 0:00:01]} 54. Ne3 {[%emt 0:00:00]} Be2 {[%emt 0:00:
01]} 55. Nf5 {[%emt 0:00:01]} h5 {[%emt 0:00:05]} 56. Ng3 {[%emt 0:00:01]} Bf3
{[%emt 0:00:01]} 57. Nxh5 {[%emt 0:00:00]} Kd6 {[%emt 0:00:01]} 58. Kg5 {
[%emt 0:00:01]} Ke7 {[%emt 0:00:01]} 59. Ng3 {[%emt 0:00:07]} Kf8 {[%emt 0:00:
01]} 60. Kh6 {[%emt 0:00:01]} Kg8 {[%emt 0:00:01]} 61. h4 {[%emt 0:00:00]} Bd1
{[%emt 0:00:01]} 62. Nf5 {[%emt 0:00:01]} Be2 {[%emt 0:00:02]} 63. Ne7+ {
[%emt 0:00:01]} Kh8 {[%emt 0:00:01]} 64. Ng6+ {[%emt 0:00:01]} Kg8 {[%emt 0:00:
00]} 65. Nf4 {[%emt 0:00:00]} Bd1 {[%emt 0:00:01]} 66. Kg5 {[%emt 0:00:01]} Kg7
{[%emt 0:00:02]} 67. Ne6+ {[%emt 0:00:00]} Kh8 {[%emt 0:00:00]} 68. Kh6 {
[%emt 0:00:01]} Be2 {[%emt 0:00:01]} 69. Nf4 {[%emt 0:00:01]} Bd1 {[%emt 0:00:
01]} 70. Nd5 {[%emt 0:00:01]} Be2 {[%emt 0:00:01]} 71. Ne7 {[%emt 0:00:01]} Bd1
{[%emt 0:00:02]} 72. Ng6+ {[%emt 0:00:00]} Kg8 {[%emt 0:00:00]} 73. Ne5 {
[%emt 0:00:01]} Be2 {[%emt 0:00:01]} 74. Kg5 {[%emt 0:00:01]} Kh8 {[%emt 0:00:
01]} 75. Nd7 {[%emt 0:00:02]} Bd1 {[%emt 0:00:00]} 76. Nf6 {[%emt 0:00:01]} Be2
{[%emt 0:00:02]} 77. Ne4 {[%emt 0:00:12]} Bd1 {[%emt 0:00:02]} 78. Nc3 {
[%emt 0:00:01]} Bf3 {[%emt 0:00:04]} 79. Kf4 {[%emt 0:00:00]} Bh5 {[%emt 0:00:
01]} 80. Ne4 {[%emt 0:00:03]} Bd1 {[%emt 0:00:02]} 81. Ng3 {[%emt 0:00:00]} Kg7
{[%emt 0:00:02]} 82. Ke3 Kh6 {[%emt 0:00:01]} 83. Kd2 {[%emt 0:00:01]} Bg4 {
[%emt 0:00:02]} 84. Kc3 {[%emt 0:00:01]} Bf3 {[%emt 0:00:03]} 85. Kd4 {[%emt 0:
00:02]} Bd1 {[%emt 0:00:00]} 86. Ke3 {[%emt 0:00:02]} Bg4 {[%emt 0:00:03]} 87.
Kd2 {[%emt 0:00:01]} Bf3 {[%emt 0:00:02]} 88. Ke3 {[%emt 0:00:11]} Bd1 {
[%emt 0:00:01]} 89. Kf4 {[%emt 0:00:04]} Kh7 {[%emt 0:00:02]} 90. Ne4 {[%emt 0:
00:01]} Kg7 {[%emt 0:00:02]} 91. Nc3 {[%emt 0:00:04]} Bh5 {[%emt 0:00:02]} 92.
Ke3 {[%emt 0:00:02]} Kh6 {[%emt 0:00:01]} 93. Nd5 {[%emt 0:00:04]} Bd1 {
[%emt 0:00:02]} 94. Nf4 {[%emt 0:00:01]} Bg4 {[%emt 0:00:02]} 95. Kd2 {[%emt 0:
00:08]} Bf3 {[%emt 0:00:02]} 96. Ke1 {[%emt 0:00:02]} Bg4 {[%emt 0:00:01]} 97.
Kf2 {[%emt 0:00:01]} Bd1 {[%emt 0:00:01]} 98. Ke3 {[%emt 0:00:03]} Bg4 {
[%emt 0:00:01]} 99. Kd4 {[%emt 0:00:05]} Bd1 {[%emt 0:00:03]} 100. Ke5 {
[%emt 0:00:01]} Kg7 {[%emt 0:00:07]} 101. Kf5 {[%emt 0:00:03]} Bf3 {[%emt 0:00:
05]} 102. Kg5 {[%emt 0:00:02]} Bd1 {[%emt 0:00:01]} 103. Ne6+ {[%emt 0:00:01]}
Kh7 {[%emt 0:00:01]} 104. Nd4 {[%emt 0:00:00]} Kg7 {[%emt 0:00:02]} 105. Nf5+ {
[%emt 0:00:06]} Kh7 {[%emt 0:00:01]} 106. Ng3 {[%emt 0:00:00]} Kg7 {[%emt 0:00:
02]} 107. Nf1 {[%emt 0:00:04]} Kh7 {[%emt 0:00:01]} 108. Ne3 {[%emt 0:00:02]}
Be2 {[%emt 0:00:01]} 109. Nd5 {[%emt 0:00:01]} Kg7 {[%emt 0:00:02]} 110. Nf6 {
[%emt 0:00:01]} Bd1 {[%emt 0:00:02]} 111. Ne4 {[%emt 0:00:02]} Kh7 {[%emt 0:00:
02]} 112. Ng3 {[%emt 0:00:01]} Kg7 {[%emt 0:00:01]} 113. Nf5+ {[%emt 0:00:02]}
Kh7 {[%emt 0:00:01]} 114. Kf4 {[%emt 0:00:01]} Kg6 {[%emt 0:00:02]} 115. Ne3 {
[%emt 0:00:02]} Be2 {[%emt 0:00:02]} 116. Kg3 {[%emt 0:00:01]} Kg7 {[%emt 0:00:
08]} 117. Kf2 {[%emt 0:00:03]} Bh5 {[%emt 0:00:01]} 118. Nd5 {[%emt 0:00:01]}
Kh6 {[%emt 0:00:06]} 119. Nf4 {[%emt 0:00:03]} Bd1 {[%emt 0:00:01]} 120. Ke1 {
[%emt 0:00:06]} Bg4 {[%emt 0:00:01]} 121. Kd2 {[%emt 0:00:00]} Bf3 {[%emt 0:00:
04]} 122. Ke3 {[%emt 0:00:04]} Bd1 {[%emt 0:00:00]} 123. Ke4 {[%emt 0:00:03]}
Bg4 {[%emt 0:00:03]} 124. Ke5 {[%emt 0:00:02]} Kg7 {[%emt 0:00:02]} 125. Ng2 {
[%emt 0:00:03]} Kh6 {[%emt 0:00:05]} 126. Kf4 {[%emt 0:00:01]} Bd1 {[%emt 0:00:
01]} 127. Ne3 {[%emt 0:00:02]} Be2 {[%emt 0:00:02]} 128. Nf5+ {[%emt 0:00:00]}
Kg6 {[%emt 0:00:07]} 129. Ng3 {[%emt 0:00:03]} Bd1 {[%emt 0:00:01]} 130. Nf1 {
[%emt 0:00:03]} Kh6 {[%emt 0:00:03]} 131. Ne3 {[%emt 0:00:02]} Be2 {[%emt 0:00:
01]} 132. Nf5+ {[%emt 0:00:01]} Kg6 {[%emt 0:00:02]} 133. Ne7+ {[%emt 0:00:02]}
Kh6 {[%emt 0:00:04]} 134. Nd5 {[%emt 0:00:02]} Kg6 {[%emt 0:00:03]} 135. Kg3 {
[%emt 0:00:02]} Bd1 {[%emt 0:00:04]} 136. Nc3 {[%emt 0:00:02]} Bh5 {[%emt 0:00:
04]} 137. Ne4 {[%emt 0:00:03]} Bd1 {[%emt 0:00:02]} 138. Nf2 {[%emt 0:00:00]}
Be2 {[%emt 0:00:01]} 139. Nh3 {[%emt 0:00:01]} Bd1 {[%emt 0:00:02]} 140. Nf4+ {
[%emt 0:00:03]} Kh6 {[%emt 0:00:01]} 141. Kf2 {[%emt 0:00:02]} Bg4 {[%emt 0:00:
01]} 142. Ng2 {[%emt 0:00:02]} Bd1 {[%emt 0:00:01]} 143. Ne3 {[%emt 0:00:01]}
Bh5 {[%emt 0:00:03]} 144. Nf5+ {[%emt 0:00:02]} Kg6 {[%emt 0:00:02]} 145. Ng3 {
[%emt 0:00:01]} Bd1 {[%emt 0:00:02]} 146. Ke1 {[%emt 0:00:00]} Bg4 {[%emt 0:00:
01]} 147. Kd2 {[%emt 0:00:01]} Kh6 {[%emt 0:00:02]} 148. Ke3 {[%emt 0:00:02]}
Bd1 {[%emt 0:00:02]} 149. Kf4 {[%emt 0:00:01]} Kg6 {[%emt 0:00:01]} 1/2-1/2

[Event "FIDE Women World Blitz 2021"]
[Site "Warsaw"]
[Date "2021.12.29"]
[Round "5.21"]
[White "Michna, Marta"]
[Black "Fernandez, Maria Florencia"]
[Result "1-0"]
[ECO "A48"]
[WhiteElo "2312"]
[BlackElo "2184"]
[Annotator "NA"]
[PlyCount "237"]
[EventDate "2021.12.29"]
[EventType "swiss"]
[EventCountry "POL"]
[Tiebreak "Cut1 Buchholz"]
[SourceTitle "playchess.com"]
[Source "ChessBase"]
[SourceQuality "1"]
[TimeControl "180+2"]

1. d4 {[%emt 0:00:01]} Nf6 {[%emt 0:00:02]} 2. c3 {[%emt 0:00:00]} g6 {[%emt 0:
00:01]} 3. Nf3 {[%emt 0:00:01]} Bg7 {[%emt 0:00:03]} 4. Bf4 {[%emt 0:00:01]}
O-O {[%emt 0:00:02]} 5. h3 {[%emt 0:00:01]} d6 {[%emt 0:00:01]} 6. Nbd2 {
[%emt 0:00:04]} Nc6 {[%emt 0:00:02]} 7. e4 {[%emt 0:00:06]} Nd7 {[%emt 0:00:05]
} 8. Be2 {[%emt 0:00:06]} e5 {[%emt 0:00:02]} 9. dxe5 {[%emt 0:00:01]} dxe5 {
[%emt 0:00:04]} 10. Be3 {[%emt 0:00:01]} h6 {[%emt 0:00:07]} 11. Nc4 {[%emt 0:
00:58]} f5 {[%emt 0:00:03]} 12. O-O {[%emt 0:00:09]} f4 {[%emt 0:00:04]} 13.
Bc1 {[%emt 0:00:03]} Qe7 {[%emt 0:00:09]} 14. b4 {[%emt 0:00:07]} a6 {[%emt 0:
00:53]} 15. a4 {[%emt 0:00:13]} Rd8 {[%emt 0:00:04]} 16. Qc2 {[%emt 0:00:03]}
Qf6 {[%emt 0:00:11]} 17. Rd1 {[%emt 0:00:08]} Re8 {[%emt 0:00:02]} 18. Ba3 {
[%emt 0:00:06]} g5 {[%emt 0:00:03]} 19. b5 {[%emt 0:00:04]} Ne7 {[%emt 0:00:06]
} 20. b6 {[%emt 0:00:05]} Nxb6 {[%emt 0:00:15]} 21. Ncxe5 {[%emt 0:00:06]} Be6
{[%emt 0:00:23]} 22. a5 {[%emt 0:00:06]} Nbc8 {[%emt 0:00:01]} 23. Bc4 {
[%emt 0:00:09]} Bxc4 {[%emt 0:00:05]} 24. Nxc4 {[%emt 0:00:01]} Nc6 {[%emt 0:
00:04]} 25. e5 {[%emt 0:00:04]} Qe6 {[%emt 0:00:02]} 26. Qe4 {[%emt 0:00:13]}
N8e7 {[%emt 0:00:03]} 27. Rab1 {[%emt 0:00:08]} Rab8 {[%emt 0:00:13]} 28. Bxe7
{[%emt 0:00:09]} Rxe7 {[%emt 0:00:02]} 29. Qd5 {[%emt 0:00:01]} Qxd5 {[%emt 0:
00:17]} 30. Rxd5 {[%emt 0:00:02]} Na7 {[%emt 0:00:02]} 31. Nd4 {[%emt 0:00:07]}
c6 {[%emt 0:00:08]} 32. Rd6 {[%emt 0:00:07]} Nb5 {[%emt 0:00:01]} 33. Nf5 {
[%emt 0:00:07]} Ree8 {[%emt 0:00:13]} 34. Rg6 {[%emt 0:00:02]} Kf7 {[%emt 0:00:
06]} 35. Rxg7+ {[%emt 0:00:02]} Ke6 36. Nd4+ {[%emt 0:00:03]} Kd5 {[%emt 0:00:
01]} 37. Nxb5 {[%emt 0:00:09]} axb5 {[%emt 0:00:02]} 38. Nb6+ {[%emt 0:00:03]}
Ke4 {[%emt 0:00:08]} 39. Re1+ {[%emt 0:00:03]} Kd3 {[%emt 0:00:02]} 40. e6 {
[%emt 0:00:01]} Kxc3 {[%emt 0:00:02]} 41. Rc1+ {[%emt 0:00:06]} Kb4 {[%emt 0:
00:03]} 42. a6 {[%emt 0:00:04]} bxa6 {[%emt 0:00:01]} 43. Rxc6 {[%emt 0:00:02]}
a5 {[%emt 0:00:02]} 44. Rd7 {[%emt 0:00:02]} a4 {[%emt 0:00:03]} 45. Rd4+ {
[%emt 0:00:01]} Ka5 {[%emt 0:00:07]} 46. Nd7 Rbc8 {[%emt 0:00:00]} 47. Rxc8 {
[%emt 0:00:02]} Rxc8 {[%emt 0:00:01]} 48. e7 Re8 {[%emt 0:00:01]} 49. Re4 a3
50. Nc5 {[%emt 0:00:14]} a2 {[%emt 0:00:01]} 51. Nb3+ {[%emt 0:00:01]} Kb6 {
[%emt 0:00:03]} 52. Kf1 {[%emt 0:00:00]} Kc6 {[%emt 0:00:03]} 53. Ke2 Kd5 54.
f3 {[%emt 0:00:01]} Kd6 {[%emt 0:00:04]} 55. Kd3 {[%emt 0:00:01]} Rxe7 {
[%emt 0:00:03]} 56. Rd4+ {[%emt 0:00:05]} Kc6 {[%emt 0:00:02]} 57. Kc2 {
[%emt 0:00:06]} Re1 {[%emt 0:00:03]} 58. Kb2 {[%emt 0:00:02]} Rb1+ {[%emt 0:00:
03]} 59. Kxa2 {[%emt 0:00:02]} Rg1 {[%emt 0:00:01]} 60. Rd2 {[%emt 0:00:00]} b4
{[%emt 0:00:03]} 61. Nd4+ {[%emt 0:00:01]} Kb6 {[%emt 0:00:02]} 62. Kb3 {
[%emt 0:00:01]} Rb1+ {[%emt 0:00:01]} 63. Kc4 {[%emt 0:00:01]} Ka5 {[%emt 0:00:
03]} 64. Ra2+ {[%emt 0:00:01]} Kb6 {[%emt 0:00:00]} 65. Nb3 {[%emt 0:00:01]}
Rg1 {[%emt 0:00:02]} 66. Kxb4 {[%emt 0:00:01]} Kc6 {[%emt 0:00:01]} 67. Rc2+ {
[%emt 0:00:00]} Kd5 {[%emt 0:00:01]} 68. Kc3 {[%emt 0:00:01]} Re1 {[%emt 0:00:
04]} 69. Rd2+ {[%emt 0:00:01]} Ke5 {[%emt 0:00:01]} 70. Kc2 {[%emt 0:00:03]} h5
{[%emt 0:00:03]} 71. Nc1 {[%emt 0:00:01]} Kf5 {[%emt 0:00:02]} 72. Rd5+ {
[%emt 0:00:02]} Kg6 {[%emt 0:00:01]} 73. Rd6+ {[%emt 0:00:01]} Kg7 {[%emt 0:00:
01]} 74. Rd4 {[%emt 0:00:10]} Kf6 {[%emt 0:00:03]} 75. Rd2 {[%emt 0:00:02]} g4
{[%emt 0:00:05]} 76. hxg4 {[%emt 0:00:01]} hxg4 {[%emt 0:00:00]} 77. Nd3 {
[%emt 0:00:04]} Ra1 {[%emt 0:00:04]} 78. Nxf4 {[%emt 0:00:03]} Kf5 {[%emt 0:00:
00]} 79. Nd3 {[%emt 0:00:02]} gxf3 {[%emt 0:00:02]} 80. gxf3 {[%emt 0:00:01]}
Rf1 {[%emt 0:00:03]} 81. f4 {[%emt 0:00:01]} Ra1 {[%emt 0:00:01]} 82. Kc3 {
[%emt 0:00:03]} Ra3+ {[%emt 0:00:03]} 83. Kd4 {[%emt 0:00:01]} Ra4+ {[%emt 0:
00:01]} 84. Ke3 {[%emt 0:00:01]} Re4+ {[%emt 0:00:01]} 85. Kf3 {[%emt 0:00:00]}
Ra4 {[%emt 0:00:01]} 86. Re2 {[%emt 0:00:02]} Ra3 {[%emt 0:00:01]} 87. Re5+ {
[%emt 0:00:01]} Kf6 {[%emt 0:00:00]} 88. Ke3 {[%emt 0:00:01]} Ra1 {[%emt 0:00:
03]} 89. Rb5 {[%emt 0:00:02]} Rh1 {[%emt 0:00:02]} 90. Ke4 {[%emt 0:00:02]} Rd1
{[%emt 0:00:02]} 91. Rb6+ {[%emt 0:00:00]} Ke7 {[%emt 0:00:01]} 92. Ne5 {
[%emt 0:00:01]} Ra1 {[%emt 0:00:04]} 93. Kf5 {[%emt 0:00:01]} Ra5 {[%emt 0:00:
03]} 94. Rb7+ {[%emt 0:00:02]} Ke8 {[%emt 0:00:02]} 95. Rh7 {[%emt 0:00:03]}
Kf8 {[%emt 0:00:04]} 96. Kg5 {[%emt 0:00:02]} Kg8 {[%emt 0:00:01]} 97. Rb7 {
[%emt 0:00:01]} Rc5 {[%emt 0:00:02]} 98. Kf6 {[%emt 0:00:02]} Rc8 {[%emt 0:00:
04]} 99. f5 {[%emt 0:00:01]} Rf8+ {[%emt 0:00:01]} 100. Kg5 {[%emt 0:00:01]}
Re8 {[%emt 0:00:00]} 101. Ng6 {[%emt 0:00:01]} Re1 {[%emt 0:00:02]} 102. Kf6 {
[%emt 0:00:02]} Re6+ {[%emt 0:00:04]} 103. Kg5 {[%emt 0:00:04]} Ra6 {[%emt 0:
00:04]} 104. Ne7+ {[%emt 0:00:04]} Kf7 {[%emt 0:00:02]} 105. Nd5+ {[%emt 0:00:
02]} Kf8 {[%emt 0:00:01]} 106. Nc7 {[%emt 0:00:09]} Rc6 {[%emt 0:00:03]} 107.
Ne6+ {[%emt 0:00:01]} Kg8 {[%emt 0:00:01]} 108. Rb8+ {[%emt 0:00:01]} Kh7 {
[%emt 0:00:01]} 109. Kf6 {[%emt 0:00:02]} Ra6 {[%emt 0:00:03]} 110. Rb7+ {
[%emt 0:00:04]} Kh8 {[%emt 0:00:01]} 111. Kf7 {[%emt 0:00:03]} Kh7 {[%emt 0:00:
04]} 112. f6 {[%emt 0:00:02]} Ra8 {[%emt 0:00:02]} 113. Ke7 {[%emt 0:00:04]}
Kg6 {[%emt 0:00:03]} 114. f7 {[%emt 0:00:02]} Rc8 {[%emt 0:00:02]} 115. f8=Q {
[%emt 0:00:05]} Rc4 {[%emt 0:00:01]} 116. Qf6+ {[%emt 0:00:02]} Kh5 {[%emt 0:
00:01]} 117. Rb5+ {[%emt 0:00:00]} Kg4 {[%emt 0:00:01]} 118. Rg5+ {[%emt 0:00:
02]} Kh4 {[%emt 0:00:03]} 119. Qh6# 1-0

[Event "FIDE Women World Blitz 2021"]
[Site "Warsaw"]
[Date "2021.12.29"]
[Round "5.22"]
[White "Bodnaruk, Anastasia"]
[Black "Sandu, Mihaela"]
[Result "1-0"]
[ECO "B20"]
[WhiteElo "2396"]
[BlackElo "2244"]
[Annotator "NA"]
[PlyCount "76"]
[EventDate "2021.12.29"]
[EventType "swiss"]
[EventCountry "POL"]
[Tiebreak "Cut1 Buchholz"]
[SourceTitle "playchess.com"]
[Source "ChessBase"]
[SourceQuality "1"]
[TimeControl "180+2"]

1. e4 {[%emt 0:00:00]} c5 {[%emt 0:00:00]} 2. b3 {[%emt 0:00:01]} Nc6 {[%emt 0:
00:03]} 3. Bb2 {[%emt 0:00:02]} d6 {[%emt 0:00:04]} 4. Bb5 {[%emt 0:00:02]} Bd7
{[%emt 0:00:05]} 5. f4 {[%emt 0:00:02]} a6 {[%emt 0:00:03]} 6. Bxc6 {[%emt 0:
00:01]} Bxc6 {[%emt 0:00:01]} 7. Nc3 {[%emt 0:00:01]} e6 {[%emt 0:00:08]} 8.
Nf3 {[%emt 0:00:03]} Nf6 {[%emt 0:00:02]} 9. Qe2 {[%emt 0:00:03]} Be7 {[%emt 0:
00:07]} 10. d4 {[%emt 0:00:06]} cxd4 {[%emt 0:00:09]} 11. Nxd4 {[%emt 0:00:01]}
O-O {[%emt 0:00:12]} 12. O-O-O {[%emt 0:00:05]} Qc7 {[%emt 0:00:09]} 13. g4 {
[%emt 0:00:05]} d5 {[%emt 0:00:04]} 14. e5 {[%emt 0:00:09]} Ne4 {[%emt 0:00:02]
} 15. Nxe4 {[%emt 0:00:18]} dxe4 {[%emt 0:00:01]} 16. Kb1 {[%emt 0:00:11]} b5 {
[%emt 0:00:07]} 17. f5 {[%emt 0:00:29]} Bd5 {[%emt 0:00:13]} 18. Rhf1 {[%emt 0:
00:05]} Bc5 {[%emt 0:00:07]} 19. f6 {[%emt 0:00:19]} g6 {[%emt 0:00:01]} 20. h4
{[%emt 0:00:10]} Rfd8 {[%emt 0:00:09]} 21. h5 {[%emt 0:00:04]} Qxe5 {[%emt 0:
00:23]} 22. Nf5 {[%emt 0:00:19]} Qc7 {[%emt 0:00:06]} 23. Nh6+ {[%emt 0:00:04]}
Kf8 {[%emt 0:00:04]} 24. hxg6 {[%emt 0:00:05]} hxg6 {[%emt 0:00:02]} 25. Rh1 {
[%emt 0:00:05]} Ke8 {[%emt 0:00:03]} 26. g5 {[%emt 0:00:25]} e3 {[%emt 0:00:01]
} 27. Rh3 {[%emt 0:00:14]} Rac8 {[%emt 0:00:03]} 28. Ng4 {[%emt 0:00:04]} Be4 {
[%emt 0:00:22]} 29. Rh8+ {[%emt 0:00:05]} Bf8 {[%emt 0:00:01]} 30. Rxd8+ {
[%emt 0:00:01]} Rxd8 {[%emt 0:00:26]} 31. Ba3 {[%emt 0:00:06]} Rd2 {[%emt 0:00:
12]} 32. Rxf8+ {[%emt 0:00:02]} Kd7 {[%emt 0:00:01]} 33. Rxf7+ {[%emt 0:00:02]}
Kd8 {[%emt 0:00:01]} 34. Rxc7 {[%emt 0:00:06]} Rxe2 {[%emt 0:00:05]} 35. f7 {
[%emt 0:00:06]} Re1+ {[%emt 0:00:02]} 36. Kb2 {[%emt 0:00:01]} Rf1 {[%emt 0:00:
01]} 37. Nxe3 {[%emt 0:00:03]} Rf2 {[%emt 0:00:04]} 38. Re7 {[%emt 0:00:03]}
Bf5 {[%emt 0:00:08]} 1-0

[Event "FIDE Women World Blitz 2021"]
[Site "Warsaw"]
[Date "2021.12.29"]
[Round "5.23"]
[White "Mammadova, Gulnar"]
[Black "Sliwicka, Alicja"]
[Result "1-0"]
[ECO "B52"]
[WhiteElo "2395"]
[BlackElo "2303"]
[Annotator "NA"]
[PlyCount "93"]
[EventDate "2021.12.29"]
[EventType "swiss"]
[EventCountry "POL"]
[Tiebreak "Cut1 Buchholz"]
[SourceTitle "playchess.com"]
[Source "ChessBase"]
[SourceQuality "1"]
[TimeControl "180+2"]

1. e4 {[%emt 0:00:01]} c5 {[%emt 0:00:01]} 2. Nf3 {[%emt 0:00:01]} d6 {[%emt 0:
00:01]} 3. Bb5+ {[%emt 0:00:01]} Bd7 {[%emt 0:00:01]} 4. c4 {[%emt 0:00:01]}
Bxb5 {[%emt 0:00:01]} 5. cxb5 {[%emt 0:00:01]} Nf6 {[%emt 0:00:01]} 6. Nc3 {
[%emt 0:00:02]} a6 {[%emt 0:00:01]} 7. Qe2 {[%emt 0:00:11]} g6 {[%emt 0:00:04]}
8. O-O {[%emt 0:00:14]} Bg7 {[%emt 0:00:01]} 9. a4 {[%emt 0:00:05]} axb5 {
[%emt 0:00:09]} 10. Nxb5 {[%emt 0:00:03]} Nc6 {[%emt 0:00:03]} 11. d3 {[%emt 0:
00:12]} O-O {[%emt 0:00:02]} 12. Bd2 {[%emt 0:00:05]} e6 {[%emt 0:00:10]} 13.
Rfc1 {[%emt 0:00:23]} Na5 {[%emt 0:00:08]} 14. Qd1 {[%emt 0:00:11]} d5 {
[%emt 0:00:24]} 15. b4 {[%emt 0:00:33]} dxe4 {[%emt 0:00:13]} 16. dxe4 {
[%emt 0:00:06]} Nc6 {[%emt 0:00:09]} 17. e5 {[%emt 0:00:11]} Nd5 {[%emt 0:00:
06]} 18. Bg5 {[%emt 0:00:08]} Qb8 {[%emt 0:00:11]} 19. bxc5 {[%emt 0:00:02]}
Nxe5 {[%emt 0:00:06]} 20. Ra3 {[%emt 0:00:09]} h6 {[%emt 0:00:07]} 21. Bh4 {
[%emt 0:00:01]} Nxf3+ {[%emt 0:00:14]} 22. Rxf3 {[%emt 0:00:01]} Qe5 {[%emt 0:
00:04]} 23. Bg3 {[%emt 0:00:04]} Qe4 {[%emt 0:00:17]} 24. Nd6 {[%emt 0:00:19]}
Qxa4 {[%emt 0:00:27]} 25. Qxa4 {[%emt 0:00:01]} Rxa4 {[%emt 0:00:01]} 26. Nxb7
{[%emt 0:00:01]} Rc8 {[%emt 0:00:08]} 27. h4 {[%emt 0:00:01]} e5 {[%emt 0:00:
13]} 28. Rxf7 {[%emt 0:00:06]} Ra7 {[%emt 0:00:27]} 29. Nd6 {[%emt 0:00:19]}
Rxf7 {[%emt 0:00:02]} 30. Nxc8 {[%emt 0:00:02]} Rc7 {[%emt 0:00:02]} 31. Nd6 {
[%emt 0:00:02]} Kf8 {[%emt 0:00:03]} 32. c6 {[%emt 0:00:05]} Ke7 {[%emt 0:00:
01]} 33. Nb5 {[%emt 0:00:01]} Rc8 {[%emt 0:00:01]} 34. f3 {[%emt 0:00:08]} Nb4
{[%emt 0:00:03]} 35. c7 {[%emt 0:00:03]} Nd5 {[%emt 0:00:01]} 36. Rc5 {[%emt 0:
00:03]} Ke6 {[%emt 0:00:01]} 37. Rc6+ {[%emt 0:00:04]} Ke7 {[%emt 0:00:06]} 38.
Rxg6 {[%emt 0:00:02]} Bf6 {[%emt 0:00:01]} 39. Rxh6 {[%emt 0:00:01]} Ke6 {
[%emt 0:00:04]} 40. h5 {[%emt 0:00:04]} Kf5 {[%emt 0:00:03]} 41. Nd6+ {[%emt 0:
00:03]} Kg5 {[%emt 0:00:02]} 42. Rxf6 {[%emt 0:00:02]} Rxc7 {[%emt 0:00:01]}
43. Rf5+ {[%emt 0:00:02]} Kh6 {[%emt 0:00:01]} 44. Bxe5 {[%emt 0:00:01]} Rc1+ {
[%emt 0:00:02]} 45. Kh2 {[%emt 0:00:01]} Ne3 {[%emt 0:00:02]} 46. Bf4+ {
[%emt 0:00:01]} Kh7 {[%emt 0:00:02]} 47. Bxe3 {[%emt 0:00:01]} 1-0

[Event "FIDE Women World Blitz 2021"]
[Site "Warsaw"]
[Date "2021.12.29"]
[Round "5.24"]
[White "Maltsevskaya, Aleksandra"]
[Black "Kovanova, Baira"]
[Result "1-0"]
[ECO "C78"]
[WhiteElo "2411"]
[BlackElo "2331"]
[Annotator "NA"]
[PlyCount "63"]
[EventDate "2021.12.29"]
[EventType "swiss"]
[EventCountry "POL"]
[Tiebreak "Cut1 Buchholz"]
[SourceTitle "playchess.com"]
[Source "ChessBase"]
[SourceQuality "1"]
[TimeControl "180+2"]

1. e4 {[%emt 0:00:02]} e5 {[%emt 0:00:01]} 2. Nf3 {[%emt 0:00:01]} Nc6 {
[%emt 0:00:02]} 3. Bb5 {[%emt 0:00:01]} a6 {[%emt 0:00:00]} 4. Ba4 {[%emt 0:00:
01]} Nf6 {[%emt 0:00:02]} 5. Nc3 {[%emt 0:00:02]} Bd6 {[%emt 0:00:24]} 6. O-O {
[%emt 0:00:20]} O-O {[%emt 0:00:02]} 7. d3 {[%emt 0:00:09]} b5 {[%emt 0:00:18]}
8. Bb3 {[%emt 0:00:00]} Na5 {[%emt 0:00:01]} 9. Bg5 {[%emt 0:00:07]} h6 {
[%emt 0:00:12]} 10. Bh4 {[%emt 0:00:01]} Nxb3 {[%emt 0:00:38]} 11. axb3 {
[%emt 0:00:01]} Bb7 {[%emt 0:00:01]} 12. Qd2 {[%emt 0:00:13]} Be7 {[%emt 0:00:
21]} 13. Nxe5 {[%emt 0:00:23]} Nxe4 {[%emt 0:00:15]} 14. dxe4 {[%emt 0:00:27]}
Bxh4 {[%emt 0:00:02]} 15. Nxd7 {[%emt 0:01:00]} Re8 {[%emt 0:00:01]} 16. Rfd1 {
[%emt 0:00:04]} b4 {[%emt 0:00:39]} 17. Nd5 {[%emt 0:00:01]} Rxe4 {[%emt 0:00:
19]} 18. Nc5 {[%emt 0:00:18]} Bxd5 {[%emt 0:00:07]} 19. Nxe4 {[%emt 0:00:07]}
Bxe4 {[%emt 0:00:01]} 20. Qf4 {[%emt 0:00:06]} Qf6 {[%emt 0:00:05]} 21. Qxe4 {
[%emt 0:00:02]} Qxf2+ {[%emt 0:00:01]} 22. Kh1 {[%emt 0:00:01]} Rf8 {[%emt 0:
00:02]} 23. Rf1 {[%emt 0:00:04]} Qc5 {[%emt 0:00:07]} 24. Qxh4 {[%emt 0:00:01]}
a5 {[%emt 0:00:01]} 25. Qc4 {[%emt 0:00:03]} Qe5 {[%emt 0:00:02]} 26. Rae1 {
[%emt 0:00:02]} Qxb2 {[%emt 0:00:02]} 27. h3 {[%emt 0:00:02]} Qa2 {[%emt 0:00:
04]} 28. Re7 {[%emt 0:00:04]} a4 {[%emt 0:00:02]} 29. Rexf7 {[%emt 0:00:01]}
Rxf7 {[%emt 0:00:02]} 30. Qxf7+ {[%emt 0:00:02]} Kh8 {[%emt 0:00:00]} 31. Qe8+
{[%emt 0:00:02]} Kh7 {[%emt 0:00:01]} 32. Qe4+ {[%emt 0:00:01]} 1-0